fUSD/lending_fUSD_20250204
["ID","MTS","AMOUNT","RATE_DAILY","PERIOD"]
[351624380,1738668650522,-500.0,9.446e-05,2]
[351624381,1738668650532,-500.0,9.446e-05,2]
[351624382,1738668650543,-1000.0,9.491e-05,4]
[351624383,1738668650553,-438.25,9.534e-05,2]
[351624384,1738668650563,-150.0,9.534e-05,2]
[351624385,1738668650572,-438.55,9.534e-05,2]
[351624386,1738668650582,-150.0,9.534e-05,2]
[351624387,1738668650592,-500.0,9.581e-05,2]
[351624388,1738668650602,-500.0,9.581e-05,2]
[351624389,1738668650611,-500.0,9.581e-05,2]
[351624390,1738668650622,-500.0,9.581e-05,2]
[351624391,1738668650631,-450.2445754,9.581e-05,2]
[351624392,1738668650641,-500.0,9.581e-05,2]
[351624393,1738668650651,-523.2,9.581e-05,2]
[351624394,1738668650660,-500.0,9.581e-05,2]
[351624395,1738668650670,-360.50769226,9.581e-05,2]
[351624396,1738668650683,-500.0,9.581e-05,2]
[351624397,1738668650693,-500.0,9.581e-05,2]
[351624398,1738668650705,-500.0,9.581e-05,2]
[351624399,1738668650715,-500.0,9.581e-05,2]
[351624400,1738668650724,-500.0,9.581e-05,2]
[351624401,1738668650734,-500.0,9.581e-05,2]
[351624402,1738668650743,-500.0,9.581e-05,2]
[351624403,1738668650753,-500.0,9.581e-05,2]
[351624404,1738668650766,-500.0,9.581e-05,2]
[351624405,1738668650775,-500.0,9.581e-05,2]
[351624406,1738668650784,-500.0,9.581e-05,2]
[351624407,1738668650794,-500.0,9.581e-05,2]
[351624408,1738668650803,-500.0,9.581e-05,2]
[351624409,1738668650813,-500.0,9.581e-05,2]
[351624410,1738668650822,-500.0,9.581e-05,2]
[351624411,1738668650831,-500.0,9.581e-05,2]
[351624412,1738668650841,-500.0,9.581e-05,2]
[351624413,1738668650851,-500.0,9.581e-05,2]
[351624414,1738668650860,-500.0,9.581e-05,2]
[351624415,1738668650869,-500.0,9.581e-05,2]
[351624416,1738668650880,-500.0,9.581e-05,2]
[351624417,1738668650890,-312.1529788,9.581e-05,2]
[351624418,1738668650900,-500.0,9.581e-05,2]
[351624419,1738668650910,-500.0,9.581e-05,2]
[351624420,1738668650919,-500.0,9.581e-05,2]
[351624421,1738668650932,-500.0,9.581e-05,2]
[351624422,1738668650941,-500.0,9.581e-05,2]
[351624423,1738668650951,-500.0,9.581e-05,2]
[351624424,1738668650962,-500.0,9.581e-05,2]
[351624425,1738668650975,-528.69,9.581e-05,2]
[351624426,1738668650984,-500.0,9.581e-05,2]
[351624427,1738668650993,-500.0,9.581e-05,2]
[351624428,1738668651003,-500.0,9.581e-05,2]
[351624429,1738668651012,-419.163753,9.581e-05,2]
[351624430,1738668651022,-500.0,9.581e-05,2]
[351624431,1738668651032,-500.0,9.581e-05,2]
[351624432,1738668651043,-410.20533,9.581e-05,2]
[351624433,1738668651055,-500.0,9.581e-05,2]
[351624434,1738668651064,-500.0,9.581e-05,2]
[351624435,1738668651073,-500.0,9.581e-05,2]
[351624436,1738668651083,-500.0,9.581e-05,2]
[351624437,1738668651092,-500.0,9.581e-05,2]
[351624438,1738668651102,-500.0,9.581e-05,2]
[351624439,1738668651111,-512.08,9.581e-05,2]
[351624440,1738668651120,-500.0,9.581e-05,2]
[351624441,1738668651130,-500.0,9.581e-05,2]
[351624442,1738668651139,-500.0,9.581e-05,2]
[351624443,1738668651148,-500.0,9.581e-05,2]
[351624444,1738668651157,-500.0,9.581e-05,2]
[351624445,1738668651167,-500.0,9.581e-05,2]
[351624446,1738668651176,-500.0,9.581e-05,2]
[351624447,1738668651186,-573.14,9.581e-05,2]
[351624448,1738668651196,-500.0,9.581e-05,2]
[351624449,1738668651211,-500.0,9.581e-05,2]
[351624450,1738668651221,-500.0,9.581e-05,2]
[351624451,1738668651231,-500.0,9.581e-05,2]
[351624452,1738668651241,-500.0,9.581e-05,2]
[351624453,1738668651251,-500.0,9.581e-05,2]
[351624454,1738668651261,-500.0,9.581e-05,2]
[351624455,1738668651271,-500.0,9.581e-05,2]
[351624456,1738668651281,-500.0,9.581e-05,2]
[351624457,1738668651290,-500.0,9.581e-05,2]
[351624458,1738668651300,-500.0,9.581e-05,2]
[351624459,1738668651310,-500.0,9.581e-05,2]
[351624460,1738668651320,-500.0,9.581e-05,2]
[351624461,1738668651329,-500.0,9.581e-05,2]
[351624462,1738668651339,-500.0,9.581e-05,2]
[351624463,1738668651349,-500.0,9.581e-05,2]
[351624464,1738668651359,-500.0,9.581e-05,2]
[351624465,1738668651368,-525.64883438,9.581e-05,2]
[351624466,1738668651378,-500.0,9.581e-05,2]
[351624467,1738668651387,-680.57,9.581e-05,2]
[351624468,1738668651397,-500.0,9.581e-05,2]
[351624469,1738668651462,-500.0,9.581e-05,2]
[351624470,1738668651476,-500.0,9.581e-05,2]
[351624471,1738668651491,-500.0,9.581e-05,2]
[351624472,1738668651502,-585.37,9.581e-05,2]
[351624473,1738668651512,-842.21,9.581e-05,2]
[351624474,1738668651521,-626.26,9.581e-05,2]
[351624475,1738668651530,-500.0,9.581e-05,2]
[351624476,1738668651541,-504.15,9.581e-05,2]
[351624477,1738668651552,-500.0,9.581e-05,2]
[351624478,1738668651561,-559.74,9.581e-05,2]
[351624479,1738668651570,-500.0,9.581e-05,2]
[351624480,1738668651579,-573.03,9.581e-05,2]
[351624481,1738668651588,-500.0,9.581e-05,2]
[351624482,1738668651597,-555.9,9.581e-05,2]
[351624483,1738668651606,-692.55,9.581e-05,2]
[351624484,1738668651616,-500.0,9.581e-05,2]
[351624485,1738668651625,-798.69,9.581e-05,2]
[351624486,1738668651634,-500.0,9.581e-05,2]
[351624487,1738668651643,-608.32,9.581e-05,2]
[351624488,1738668651652,-703.64,9.581e-05,2]
[351624489,1738668651661,-500.0,9.581e-05,2]
[351624490,1738668651671,-500.0,9.581e-05,2]
[351624491,1738668651680,-519.27,9.581e-05,2]
[351624492,1738668651690,-500.0,9.581e-05,2]
[351624493,1738668651699,-500.0,9.581e-05,2]
[351624494,1738668651707,-500.0,9.581e-05,2]
[351624495,1738668651716,-619.33854572,9.581e-05,2]
[351624496,1738668651725,-1114.61,9.581e-05,2]
[351624497,1738668651735,-500.0,9.581e-05,2]
[351624498,1738668651744,-500.0,9.581e-05,2]
[351624499,1738668651753,-656.44,9.581e-05,2]
[351624500,1738668651762,-712.81,9.581e-05,2]
[351624501,1738668651771,-287.25444111,9.581e-05,2]
[351624502,1738668651785,-487.66555889,9.581e-05,2]
[351624503,1738668651794,-6.1193643,9.581e-05,2]
[351624504,1738668651805,-493.8806357,9.581e-05,2]
[351624505,1738668651814,-500.0,9.581e-05,2]
[351624506,1738668651826,-73.7241267,9.581e-05,2]
[351624507,1738668651837,-800.8458733,9.581e-05,2]
[351624508,1738668651846,-190.47382223,9.581e-05,2]
[351624509,1738668651856,-309.52617777,9.581e-05,2]
[351624510,1738668651866,-500.0,9.581e-05,2]
[351624511,1738668651875,-637.69,9.581e-05,2]
[351624512,1738668651884,-530.24,9.581e-05,2]
[351624513,1738668651893,-672.02,9.581e-05,2]
[351624514,1738668651902,-251.71161226,9.581e-05,2]
[351624515,1738668651914,-370.81769919,9.581e-05,2]
[351624516,1738668651941,-122.42068855,9.581e-05,2]
[351624517,1738668651955,-1065.85,9.581e-05,2]
[351624518,1738668651970,-307.32934095,9.581e-05,2]
[351624519,1738668651983,-192.67065905,9.581e-05,2]
[351624520,1738668651992,-500.0,9.581e-05,2]
[351624521,1738668652002,-500.0,9.581e-05,2]
[351624522,1738668652011,-526.76,9.581e-05,2]
[351624523,1738668652021,-142.15834096,9.581e-05,2]
[351624524,1738668652467,-329.18584819,9.169e-05,2]
[351624525,1738668652476,-232.46322109,9.581e-05,2]
[351624526,1738668652486,-809.89,9.581e-05,2]
[351624527,1738668652496,-500.0,9.581e-05,2]
[351624528,1738668652506,-533.24,9.581e-05,2]
[351624529,1738668652515,-672.7,9.581e-05,2]
[351624530,1738668652525,-898.1,9.581e-05,2]
[351624531,1738668652535,-686.79,9.581e-05,2]
[351624532,1738668652544,-500.0,9.581e-05,2]
[351624533,1738668652553,-879.9,9.581e-05,2]
[351624534,1738668652562,-1015.43,9.581e-05,2]
[351624535,1738668652572,-500.0,9.581e-05,2]
[351624536,1738668652581,-600.2,9.581e-05,2]
[351624537,1738668652590,-842.24,9.581e-05,2]
[351624538,1738668652599,-555.27,9.581e-05,2]
[351624539,1738668652608,-500.0,9.581e-05,2]
[351624540,1738668652618,-2241.63,9.581e-05,2]
[351624541,1738668652627,-500.0,9.581e-05,2]
[351624542,1738668652636,-500.0,9.581e-05,2]
[351624543,1738668652646,-500.0,9.581e-05,2]
[351624544,1738668652655,-775.74,9.581e-05,2]
[351624545,1738668652664,-20.29149665,9.581e-05,2]
[351624546,1738668652676,-1559.80850335,9.581e-05,2]
[351624547,1738668652688,-500.0,9.581e-05,2]
[351624548,1738668652698,-794.25,9.581e-05,2]
[351624549,1738668652707,-908.45,9.581e-05,2]
[351624550,1738668652716,-1132.83,9.581e-05,2]
[351624551,1738668652726,-644.91,9.581e-05,2]
[351624552,1738668652736,-1003.31,9.581e-05,2]
[351624553,1738668652745,-1031.13,9.581e-05,2]
[351624554,1738668652755,-674.52,9.581e-05,2]
[351624555,1738668652764,-92.07506705,9.581e-05,2]
[351624556,1738668652776,-858.39493295,9.581e-05,2]
[351624557,1738668652785,-1052.45,9.581e-05,2]
[351624558,1738668652795,-500.0,9.581e-05,2]
[351624559,1738668652805,-288.95925512,9.581e-05,2]
[351624560,1738668652817,-458.10074488,9.581e-05,2]
[351624561,1738668652826,-568.28,9.581e-05,2]
[351624562,1738668652836,-500.0,9.581e-05,2]
[351624563,1738668652845,-500.0,9.581e-05,2]
[351624564,1738668652854,-1092.31263009,9.581e-05,2]
[351624565,1738668652871,-393.92736991,9.581e-05,2]
[351624566,1738668652881,-500.0,9.581e-05,2]
[351624567,1738668652891,-1154.96,9.581e-05,2]
[351624568,1738668652900,-500.0,9.581e-05,2]
[351624569,1738668652911,-763.19,9.581e-05,2]
[351624570,1738668652921,-500.0,9.581e-05,2]
[351624571,1738668652931,-500.0,9.581e-05,2]
[351624572,1738668652941,-20.14960718,9.581e-05,2]
[351624573,1738668652953,-970.53039282,9.581e-05,2]
[351624574,1738668652963,-500.0,9.581e-05,2]
[351624575,1738668652976,-630.8,9.581e-05,2]
[351624576,1738668652985,-843.93,9.581e-05,2]
[351624577,1738668652995,-500.0,9.581e-05,2]
[351624578,1738668653005,-526.97960718,9.581e-05,2]
[351624579,1738668653018,-95.68039282,9.581e-05,2]
[351624580,1738668653027,-500.0,9.581e-05,2]
[351624581,1738668653037,-398.61899846,9.581e-05,2]
[351624582,1738668653052,-239.57213968,9.581e-05,2]
[351624583,1738668653062,-756.2,9.581e-05,2]
[351624584,1738668653072,-988.0,9.581e-05,2]
[351624585,1738668653082,-500.0,9.581e-05,2]
[351624586,1738668653092,-594.03,9.581e-05,2]
[351624587,1738668653102,-238.75786759,9.581e-05,2]
[351624588,1738668653111,-657.74,9.581e-05,2]
[351624589,1738668653121,-500.0,9.581e-05,2]
[351624590,1738668653131,-500.0,9.581e-05,2]
[351624591,1738668653140,-500.0,9.581e-05,2]
[351624592,1738668653150,-661.28,9.581e-05,2]
[351624593,1738668653159,-558.24,9.581e-05,2]
[351624594,1738668653169,-743.93,9.581e-05,2]
[351624595,1738668653179,-757.05,9.581e-05,2]
[351624596,1738668653191,-327.49597308,9.581e-05,2]
[351624597,1738668653202,-959.51,9.581e-05,2]
[351624598,1738668653212,-500.0,9.581e-05,2]
[351624599,1738668653222,-402.90775997,9.581e-05,2]
[351624600,1738668653232,-574.52,9.581e-05,2]
[351624601,1738668653242,-676.14,9.581e-05,2]
[351624602,1738668653251,-500.0,9.581e-05,2]
[351624603,1738668653261,-539.88,9.581e-05,2]
[351624604,1738668653271,-241.53862881,9.581e-05,2]
[351624605,1738668653281,-500.0,9.581e-05,2]
[351624606,1738668653291,-500.0,9.581e-05,2]
[351624607,1738668653300,-500.0,9.581e-05,2]
[351624608,1738668653310,-1152.34,9.581e-05,2]
[351624609,1738668653319,-500.0,9.581e-05,2]
[351624610,1738668653329,-500.0,9.581e-05,2]
[351624611,1738668653339,-591.97,9.581e-05,2]
[351624612,1738668653348,-500.0,9.581e-05,2]
[351624613,1738668653357,-500.0,9.581e-05,2]
[351624614,1738668653366,-563.64,9.581e-05,2]
[351624615,1738668653376,-500.0,9.581e-05,2]
[351624616,1738668653385,-501.42,9.581e-05,2]
[351624617,1738668653395,-1741.61,9.581e-05,2]
[351624618,1738668653404,-500.0,9.581e-05,2]
[351624619,1738668653414,-500.0,9.581e-05,2]
[351624620,1738668653423,-500.0,9.581e-05,2]
[351624621,1738668653435,-980.29,9.581e-05,2]
[351624622,1738668653444,-581.03,9.581e-05,2]
[351624623,1738668653453,-500.0,9.582e-05,2]
[351624624,1738668653463,-500.0,9.582e-05,2]
[351624625,1738668653472,-500.0,9.582e-05,2]
[351624626,1738668653482,-500.0,9.582e-05,2]
[351624627,1738668653492,-500.0,9.582e-05,2]
[351624628,1738668653503,-500.0,9.582e-05,2]
[351624629,1738668653513,-157.90763109,9.582e-05,2]
[351624630,1738668653526,-342.09236891,9.582e-05,2]
[351624631,1738668653536,-500.0,9.582e-05,2]
[351624632,1738668653546,-500.0,9.582e-05,2]
[351624633,1738668653555,-500.0,9.582e-05,2]
[351624634,1738668653564,-500.0,9.582e-05,2]
[351624635,1738668653573,-500.0,9.582e-05,2]
[351624636,1738668653582,-500.0,9.582e-05,2]
[351624637,1738668653591,-500.0,9.582e-05,2]
[351624638,1738668653601,-500.0,9.582e-05,2]
[351624639,1738668653610,-500.0,9.582e-05,2]
[351624640,1738668653619,-1036.12,9.582e-05,2]
[351624641,1738668653629,-646.32,9.582e-05,2]
[351624642,1738668653639,-500.0,9.582e-05,2]
[351624643,1738668653647,-680.94,9.582e-05,2]
[351624644,1738668653657,-500.0,9.582e-05,2]
[351624645,1738668653667,-500.0,9.582e-05,2]
[351624646,1738668653678,-500.0,9.582e-05,2]
[351624647,1738668653690,-592.48,9.582e-05,2]
[351624648,1738668653699,-500.0,9.582e-05,2]
[351624649,1738668653710,-500.0,9.582e-05,2]
[351624650,1738668653719,-330.40342091,9.582e-05,2]
[351624651,1738668653728,-500.0,9.582e-05,2]
[351624652,1738668653737,-500.0,9.582e-05,2]
[351624653,1738668653747,-500.0,9.582e-05,2]
[351624654,1738668653756,-500.0,9.582e-05,2]
[351624655,1738668653766,-500.0,9.582e-05,2]
[351624656,1738668653775,-500.0,9.582e-05,2]
[351624657,1738668653784,-500.0,9.582e-05,2]
[351624658,1738668653794,-511.56,9.582e-05,2]
[351624659,1738668653804,-500.0,9.582e-05,2]
[351624660,1738668653813,-709.22,9.582e-05,2]
[351624661,1738668653823,-500.0,9.582e-05,2]
[351624662,1738668653832,-500.0,9.582e-05,2]
[351624663,1738668653842,-500.0,9.582e-05,2]
[351624664,1738668653852,-500.0,9.582e-05,2]
[351624665,1738668653863,-356.34639118,9.582e-05,2]
[351624666,1738668653876,-143.65360882,9.582e-05,2]
[351624667,1738668653887,-590.80544992,9.582e-05,2]
[351624668,1738668653898,-500.0,9.582e-05,2]
[351624669,1738668653907,-500.0,9.582e-05,2]
[351624670,1738668653917,-500.0,9.583e-05,2]
[351624671,1738668653927,-500.0,9.583e-05,2]
[351624672,1738668653940,-500.0,9.583e-05,2]
[351624673,1738668653950,-500.0,9.583e-05,2]
[351624674,1738668653959,-500.0,9.583e-05,2]
[351624675,1738668653970,-420.0,9.676e-05,2]
[351624676,1738668653981,-1088.105,9.7e-05,2]
[351624677,1738668653991,-814.0,9.718e-05,2]
[351624678,1738668654000,-500.0,9.718e-05,2]
[351624679,1738668654011,-500.0,9.718e-05,2]
[351624680,1738668654022,-500.0,9.718e-05,2]
[351624681,1738668654031,-523.2,9.718e-05,2]
[351624682,1738668654041,-500.0,9.718e-05,2]
[351624683,1738668654053,-500.0,9.718e-05,2]
[351624684,1738668654062,-500.0,9.718e-05,2]
[351624685,1738668654072,-500.0,9.718e-05,2]
[351624686,1738668654081,-500.0,9.718e-05,2]
[351624687,1738668654091,-500.0,9.718e-05,2]
[351624688,1738668654101,-500.0,9.718e-05,2]
[351624689,1738668654110,-500.0,9.718e-05,2]
[351624690,1738668654119,-500.0,9.718e-05,2]
[351624691,1738668654129,-500.0,9.718e-05,2]
[351624692,1738668654139,-500.0,9.718e-05,2]
[351624693,1738668654148,-500.0,9.718e-05,2]
[351624694,1738668654157,-500.0,9.718e-05,2]
[351624695,1738668654167,-500.0,9.718e-05,2]
[351624696,1738668654176,-436.96522642,9.718e-05,2]
[351624697,1738668654189,-500.0,9.718e-05,2]
[351624698,1738668654199,-279.55815457,9.718e-05,2]
[351624707,1738669832059,-1975.05,8.219e-05,2]
[351624708,1738669832070,-500.0,8.3e-05,2]
[351624709,1738669832080,-373.0144732,8.38e-05,2]
[351624710,1738669832090,-500.0,8.42e-05,2]
[351624711,1738669832101,-560.54,8.541e-05,2]
[351624712,1738669832112,-164.22,8.713e-05,2]
[351624713,1738669832123,-150.0,8.74e-05,2]
[351624714,1738669832134,-250.0,8.761e-05,2]
[351624715,1738669832147,-500.0,8.767e-05,2]
[351624716,1738669832158,-1000.0,8.835e-05,2]
[351624717,1738669832168,-19737.1015,8.934e-05,2]
[351624718,1738669832177,-218.86,9e-05,2]
[351624719,1738669832187,-150.0,9.032e-05,2]
[351624720,1738669832198,-500.0,9.033e-05,2]
[351624721,1738669832207,-500.0,9.033e-05,2]
[351624722,1738669832217,-500.0,9.033e-05,2]
[351624723,1738669832226,-500.0,9.033e-05,2]
[351624724,1738669832235,-500.0,9.033e-05,2]
[351624725,1738669832244,-500.0,9.033e-05,2]
[351624726,1738669832254,-500.0,9.033e-05,2]
[351624727,1738669832264,-500.0,9.033e-05,2]
[351624728,1738669832273,-500.0,9.033e-05,2]
[351624729,1738669832283,-500.0,9.033e-05,2]
[351624730,1738669832293,-500.0,9.033e-05,2]
[351624731,1738669832303,-500.0,9.033e-05,2]
[351624732,1738669832313,-500.0,9.033e-05,2]
[351624733,1738669832322,-500.0,9.033e-05,2]
[351624734,1738669832332,-500.0,9.033e-05,2]
[351624735,1738669832341,-500.0,9.033e-05,2]
[351624736,1738669832351,-500.0,9.033e-05,2]
[351624737,1738669832365,-500.0,9.033e-05,2]
[351624738,1738669832373,-500.0,9.033e-05,2]
[351624739,1738669832383,-500.0,9.033e-05,2]
[351624740,1738669832397,-500.0,9.033e-05,2]
[351624741,1738669832406,-500.0,9.033e-05,2]
[351624742,1738669832415,-500.0,9.033e-05,2]
[351624743,1738669832424,-500.0,9.033e-05,2]
[351624744,1738669832434,-500.0,9.033e-05,2]
[351624745,1738669832443,-500.0,9.033e-05,2]
[351624746,1738669832452,-500.0,9.033e-05,2]
[351624747,1738669832462,-500.0,9.033e-05,2]
[351624748,1738669832472,-500.0,9.033e-05,2]
[351624750,1738669832482,-500.0,9.033e-05,2]
[351624752,1738669832492,-500.0,9.033e-05,2]
[351624753,1738669832501,-777.09,9.033e-05,2]
[351624755,1738669832512,-500.0,9.033e-05,2]
[351624757,1738669832522,-500.0,9.033e-05,2]
[351624759,1738669832531,-644.34985866,9.033e-05,2]
[351624761,1738669832548,-500.0,9.033e-05,2]
[351624763,1738669832558,-500.0,9.033e-05,2]
[351624765,1738669832570,-525.51,9.033e-05,2]
[351624768,1738669832581,-510.7,9.033e-05,2]
[351624770,1738669832593,-500.0,9.033e-05,2]
[351624772,1738669832603,-506.31,9.033e-05,2]
[351624774,1738669832614,-500.0,9.033e-05,2]
[351624776,1738669832623,-500.0,9.033e-05,2]
[351624778,1738669832634,-500.0,9.033e-05,2]
[351624781,1738669832644,-500.0,9.033e-05,2]
[351624783,1738669832653,-500.0,9.033e-05,2]
[351624785,1738669832664,-500.0,9.033e-05,2]
[351624787,1738669832673,-500.0,9.033e-05,2]
[351624791,1738669832683,-262.19527014,9.033e-05,2]
[351624794,1738669832695,-500.0,9.033e-05,2]
[351624797,1738669832704,-500.0,9.033e-05,2]
[351624800,1738669832714,-500.0,9.033e-05,2]
[351624803,1738669832724,-500.0,9.033e-05,2]
[351624806,1738669832734,-500.0,9.033e-05,2]
[351624809,1738669832746,-500.0,9.033e-05,2]
[351624812,1738669832755,-500.0,9.033e-05,2]
[351624815,1738669832767,-500.0,9.033e-05,2]
[351624818,1738669832776,-500.0,9.033e-05,2]
[351624821,1738669832785,-252.55,9.033e-05,2]
[351624824,1738669832795,-500.0,9.033e-05,2]
[351624827,1738669832805,-500.0,9.033e-05,2]
[351624830,1738669832815,-500.0,9.033e-05,2]
[351624832,1738669832825,-500.0,9.033e-05,2]
[351624834,1738669832834,-531.92,9.033e-05,2]
[351624836,1738669832843,-500.0,9.033e-05,2]
[351624838,1738669832852,-500.0,9.033e-05,2]
[351624840,1738669832862,-500.0,9.033e-05,2]
[351624842,1738669832872,-308.82924748,9.033e-05,2]
[351624844,1738669832882,-396.48594357,9.033e-05,2]
[351624846,1738669832893,-500.0,9.033e-05,2]
[351624848,1738669832903,-500.0,9.033e-05,2]
[351624850,1738669832912,-500.0,9.033e-05,2]
[351624852,1738669832926,-500.0,9.033e-05,2]
[351624854,1738669832943,-500.0,9.033e-05,2]
[351624856,1738669832956,-500.0,9.033e-05,2]
[351624858,1738669832969,-500.0,9.033e-05,2]
[351624860,1738669832984,-500.0,9.033e-05,2]
[351624862,1738669832996,-500.0,9.041e-05,2]
[351624864,1738669833006,-433.05871282,9.112e-05,2]
[351624869,1738669833051,-535.06828718,9.112e-05,2]
[351624871,1738669833061,-1272.0,9.112e-05,2]
[351624873,1738669833073,-286.0969106,9.112e-05,2]
[351624875,1738669833086,-351.9030894,9.112e-05,2]
[351624877,1738669833098,-568.0,9.112e-05,2]
[351624879,1738669833107,-2953.0,9.112e-05,2]
[351624881,1738669833117,-539.0,9.112e-05,2]
[351624883,1738669833127,-1324.0,9.112e-05,2]
[351624885,1738669833137,-3911.0,9.112e-05,2]
[351624887,1738669833147,-150.0,9.112e-05,2]
[351624889,1738669833157,-1108.0,9.112e-05,2]
[351624891,1738669833167,-500.0,9.169e-05,2]
[351624892,1738669833177,-500.0,9.169e-05,2]
[351624894,1738669833187,-500.0,9.169e-05,2]
[351624895,1738669833197,-500.0,9.169e-05,2]
[351624896,1738669833208,-500.0,9.169e-05,2]
[351624897,1738669833218,-500.0,9.169e-05,2]
[351624898,1738669833227,-500.0,9.169e-05,2]
[351624899,1738669833237,-500.0,9.169e-05,2]
[351624900,1738669833247,-500.0,9.169e-05,2]
[351624901,1738669833257,-500.0,9.169e-05,2]
[351624902,1738669833269,-500.0,9.169e-05,2]
[351624903,1738669833279,-500.0,9.169e-05,2]
[351624904,1738669833289,-500.0,9.169e-05,2]
[351624905,1738669833299,-500.0,9.169e-05,2]
[351624906,1738669833309,-500.0,9.169e-05,2]
[351624907,1738669833319,-500.0,9.169e-05,2]
[351624908,1738669833328,-500.0,9.169e-05,2]
[351624909,1738669833338,-500.0,9.169e-05,2]
[351624910,1738669833349,-547.77,9.169e-05,2]
[351624911,1738669833358,-500.0,9.169e-05,2]
[351624912,1738669833369,-228.43744121,9.169e-05,2]
[351624913,1738669833379,-500.0,9.169e-05,2]
[351624914,1738669833390,-500.0,9.169e-05,2]
[351624915,1738669833404,-500.0,9.169e-05,2]
[351624916,1738669833414,-500.0,9.169e-05,2]
[351624917,1738669833424,-4036.57,9.169e-05,2]
[351624918,1738669833434,-500.0,9.169e-05,2]
[351624919,1738669833443,-500.0,9.169e-05,2]
[351624920,1738669833453,-500.0,9.169e-05,2]
[351624921,1738669833463,-500.0,9.169e-05,2]
[351624922,1738669833475,-500.0,9.169e-05,2]
[351624923,1738669833485,-500.0,9.169e-05,2]
[351624924,1738669833494,-500.0,9.169e-05,2]
[351624925,1738669833503,-331.837971,9.169e-05,2]
[351624926,1738669833513,-500.0,9.169e-05,2]
[351624927,1738669833523,-500.0,9.169e-05,2]
[351624928,1738669833532,-500.0,9.169e-05,2]
[351624929,1738669833542,-500.0,9.169e-05,2]
[351624930,1738669833552,-324.745886,9.169e-05,2]
[351624931,1738669833561,-371.29792101,9.169e-05,2]
[351624932,1738669833570,-500.0,9.169e-05,2]
[351624933,1738669833580,-500.0,9.169e-05,2]
[351624934,1738669833590,-500.0,9.169e-05,2]
[351624935,1738669833600,-500.0,9.169e-05,2]
[351624936,1738669833610,-570.43,9.169e-05,2]
[351624937,1738669833619,-500.0,9.169e-05,2]
[351624938,1738669833628,-500.0,9.169e-05,2]
[351624939,1738669833638,-500.0,9.169e-05,2]
[351624940,1738669833648,-619.91,9.169e-05,2]
[351624941,1738669833659,-500.0,9.169e-05,2]
[351624942,1738669833669,-500.0,9.169e-05,2]
[351624943,1738669833679,-500.0,9.169e-05,2]
[351624944,1738669833689,-500.0,9.169e-05,2]
[351624945,1738669833699,-500.0,9.169e-05,2]
[351624946,1738669833709,-500.0,9.169e-05,2]
[351624947,1738669833719,-500.0,9.169e-05,2]
[351624948,1738669833729,-500.0,9.169e-05,2]
[351624949,1738669833739,-500.0,9.169e-05,2]
[351624950,1738669833749,-500.0,9.169e-05,2]
[351624951,1738669833759,-500.0,9.169e-05,2]
[351624952,1738669833773,-500.0,9.169e-05,2]
[351624953,1738669833783,-500.0,9.169e-05,2]
[351624954,1738669833793,-588.6,9.169e-05,2]
[351624955,1738669833803,-500.0,9.169e-05,2]
[351624956,1738669833813,-500.0,9.169e-05,2]
[351624957,1738669833823,-500.0,9.169e-05,2]
[351624958,1738669833833,-500.0,9.169e-05,2]
[351624959,1738669833843,-500.0,9.169e-05,2]
[351624960,1738669833852,-500.0,9.169e-05,2]
[351624961,1738669833862,-158.79502854,9.169e-05,2]
[351624962,1738669833875,-341.20497146,9.169e-05,2]
[351624963,1738669833884,-500.0,9.169e-05,2]
[351624964,1738669833894,-388.37356856,9.169e-05,2]
[351624965,1738669833905,-500.0,9.169e-05,2]
[351624966,1738669833915,-500.0,9.169e-05,2]
[351624967,1738669833924,-500.0,9.169e-05,2]
[351624968,1738669833933,-500.0,9.169e-05,2]
[351624969,1738669833943,-500.0,9.169e-05,2]